fUST/lending_fUST_20250130
["ID","MTS","AMOUNT","RATE_DAILY","PERIOD"]
[350921178,1738198240263,-500.0,0.00016438,2]
[350921179,1738198240273,-500.0,0.00016438,2]
[350921180,1738198240282,-500.0,0.00016438,2]
[350921181,1738198240292,-500.0,0.00016438,2]
[350921182,1738198240301,-500.0,0.00016438,2]
[350921183,1738198240310,-500.0,0.00016438,2]
[350921184,1738198240319,-2108.42,0.00016438,2]
[350921185,1738198240328,-500.0,0.00016438,2]
[350921186,1738198240337,-500.0,0.00016438,2]
[350921187,1738198240347,-500.0,0.00016438,2]
[350921188,1738198240358,-500.0,0.00016438,2]
[350921189,1738198240367,-500.0,0.00016438,2]
[350921190,1738198240376,-784.81,0.00016438,2]
[350921191,1738198240386,-500.0,0.00016438,2]
[350921192,1738198240395,-500.0,0.00016438,2]
[350921193,1738198240406,-500.0,0.00016438,2]
[350921194,1738198240415,-500.0,0.00016438,2]
[350921195,1738198240425,-500.0,0.00016438,2]
[350921196,1738198240435,-2113.71,0.00016438,2]
[350921197,1738198240444,-506.23673172,0.00016438,2]
[350921198,1738198240453,-822.08,0.00016438,2]
[350921199,1738198240463,-500.0,0.00016438,2]
[350921200,1738198240472,-500.0,0.00016438,2]
[350921201,1738198240482,-1271.82,0.00016438,2]
[350921202,1738198240492,-500.0,0.00016438,2]
[350921203,1738198240502,-500.0,0.00016438,2]
[350921204,1738198240512,-500.0,0.00016438,2]
[350921205,1738198240523,-500.0,0.00016438,2]
[350921206,1738198240532,-1092.44,0.00016438,2]
[350921207,1738198240542,-1016.78,0.00016438,2]
[350921208,1738198240553,-500.0,0.00016438,2]
[350921209,1738198240562,-500.0,0.00016438,2]
[350921210,1738198240572,-1067.4,0.00016438,2]
[350921211,1738198240581,-500.0,0.00016438,2]
[350921212,1738198240591,-500.0,0.00016438,2]
[350921213,1738198240601,-500.0,0.00016438,2]
[350921214,1738198240611,-500.61550216,0.00016438,2]
[350921215,1738198240621,-500.0,0.00016438,2]
[350921216,1738198240631,-500.0,0.00016438,2]
[350921217,1738198240641,-500.0,0.00016438,2]
[350921218,1738198240747,-500.0,0.00016438,2]
[350921219,1738198240758,-500.0,0.00016438,2]
[350921220,1738198240767,-500.0,0.00016438,2]
[350921221,1738198240778,-500.0,0.00016438,2]
[350921222,1738198240788,-699.16,0.00016438,2]
[350921223,1738198240798,-500.0,0.00016438,2]
[350921224,1738198240808,-500.0,0.00016438,2]
[350921225,1738198240821,-500.0,0.00016438,2]
[350921226,1738198240831,-500.0,0.00016438,2]
[350921227,1738198240840,-428.65960098,0.00016438,2]
[350921228,1738198240850,-500.0,0.00016438,2]
[350921229,1738198240860,-501.23271537,0.00016438,2]
[350921230,1738198240869,-500.0,0.00016438,2]
[350921231,1738198240878,-500.0,0.00016438,2]
[350921232,1738198240888,-500.0,0.00016438,2]
[350921233,1738198240897,-1105.29,0.00016438,2]
[350921234,1738198240907,-206.53978347,0.00016438,2]
[350921235,1738198240916,-500.0,0.00016438,2]
[350921236,1738198240925,-500.0,0.00016438,2]
[350921237,1738198240935,-500.0,0.00016438,2]
[350921238,1738198240945,-500.0,0.00016438,2]
[350921239,1738198240954,-500.0,0.00016438,2]
[350921240,1738198240963,-500.0,0.00016473,2]
[350921241,1738198240972,-357.20110659,0.00016574,2]
[350921242,1738198240981,-500.0,0.00016574,2]
[350921243,1738198240992,-239.6621048,0.00016574,2]
[350921244,1738198241002,-500.0,0.00016575,2]
[350921245,1738198241012,-500.0,0.00016575,2]
[350921246,1738198241021,-500.0,0.00016575,2]
[350921247,1738198241031,-500.0,0.00016575,2]
[350921248,1738198241041,-163.241,0.00016575,2]
[350921249,1738198241052,-500.0,0.00016575,2]
[350921250,1738198241062,-500.0,0.00016575,2]
[350921251,1738198241071,-500.0,0.00016575,2]
[350921252,1738198241081,-500.0,0.00016575,2]
[350921253,1738198241090,-500.0,0.00016575,2]
[350921254,1738198241101,-500.0,0.00016575,2]
[350921255,1738198241112,-500.0,0.00016575,2]
[350921256,1738198241122,-500.0,0.00016575,2]
[350921257,1738198241133,-500.0,0.00016575,2]
[350921258,1738198241143,-500.0,0.00016575,2]
[350921259,1738198241153,-500.0,0.00016575,2]
[350921260,1738198241163,-500.0,0.00016575,2]
[350921261,1738198241178,-649.58,0.00016575,2]
[350921262,1738198241188,-500.0,0.00016575,2]
[350921263,1738198241197,-500.0,0.00016575,2]
[350921264,1738198241207,-500.0,0.00016575,2]
[350921265,1738198241217,-500.0,0.00016575,2]
[350921266,1738198241226,-747.08,0.00016575,2]
[350921267,1738198241235,-500.0,0.00016575,2]
[350921268,1738198241244,-500.0,0.00016575,2]
[350921269,1738198241254,-500.0,0.00016575,2]
[350921270,1738198241263,-569.14,0.00016575,2]
[350921271,1738198241272,-500.0,0.00016575,2]
[350921272,1738198241282,-500.0,0.00016575,2]
[350921273,1738198241292,-500.0,0.00016575,2]
[350921274,1738198241301,-325.46059219,0.00016575,2]
[350921275,1738198241311,-516.14223237,0.00016575,2]
[350921276,1738198241320,-500.0,0.00016575,2]
[350921277,1738198241330,-1060.63,0.00016575,2]
[350921278,1738198241340,-578.21980546,0.00016575,2]
[350921279,1738198241350,-500.0,0.00016575,2]
[350921280,1738198241359,-500.0,0.00016575,2]
[350921281,1738198241369,-500.0,0.00016575,2]
[350921282,1738198241379,-500.0,0.00016575,2]
[350921283,1738198241389,-500.0,0.00016575,2]
[350921284,1738198241399,-500.0,0.00016575,2]
[350921285,1738198241408,-500.0,0.00016575,2]
[350921286,1738198241418,-304.72097405,0.00016575,2]
[350921287,1738198241428,-508.24229093,0.00016575,2]
[350921288,1738198241439,-4390.86,0.00016575,2]
[350921289,1738198241452,-500.0,0.00016575,2]
[350921290,1738198241462,-500.0,0.00016575,2]
[350921291,1738198241472,-936.94,0.00016575,2]
[350921292,1738198241481,-500.0,0.00016575,2]
[350921293,1738198241491,-7393.92,0.00016575,2]
[350921294,1738198241501,-2350.9,0.00016575,2]
[350921295,1738198241510,-3082.08,0.00016575,2]
[350921296,1738198241520,-500.0,0.00016575,2]
[350921297,1738198241531,-4311.44,0.00016575,2]
[350921298,1738198241541,-500.0,0.00016575,2]
[350921299,1738198241550,-500.0,0.00016575,2]
[350921300,1738198241560,-500.0,0.00016575,2]
[350921301,1738198241569,-1407.97,0.00016575,2]
[350921302,1738198241579,-2150.13,0.00016575,2]
[350921303,1738198241588,-500.0,0.00016575,2]
[350921304,1738198241598,-500.0,0.00016575,2]
[350921305,1738198241608,-500.0,0.00016575,2]
[350921306,1738198241617,-1364.85,0.00016575,2]
[350921307,1738198241627,-574.07,0.00016575,2]
[350921308,1738198241637,-797.69,0.00016575,2]
[350921309,1738198241648,-7256.9,0.00016575,2]
[350921310,1738198241658,-546.48,0.00016575,2]
[350921311,1738198241667,-19934.76,0.00016575,2]
[350921312,1738198241676,-515.94,0.00016575,2]
[350921313,1738198241686,-895.38,0.00016575,2]
[350921314,1738198241695,-500.0,0.00016575,2]
[350921315,1738198241705,-500.0,0.00016575,2]
[350921316,1738198241715,-1097.83,0.00016575,2]
[350921317,1738198241724,-500.0,0.00016575,2]
[350921318,1738198241735,-500.0,0.00016575,2]
[350921319,1738198241749,-615.81,0.00016575,2]
[350921320,1738198241758,-513.8,0.00016575,2]
[350921321,1738198241767,-1162.91,0.00016575,2]
[350921322,1738198241777,-989.94,0.00016575,2]
[350921323,1738198241787,-655.35,0.00016575,2]
[350921324,1738198241796,-551.92,0.00016575,2]
[350921325,1738198241806,-528.33274436,0.00016575,2]
[350921326,1738198241816,-1431.76,0.00016575,2]
[350921327,1738198241826,-2251.92,0.00016575,2]
[350921328,1738198241836,-500.0,0.00016575,2]
[350921329,1738198241846,-500.0,0.00016575,2]
[350921330,1738198241856,-2108.42,0.00016575,2]
[350921331,1738198241866,-500.0,0.00016575,2]
[350921332,1738198241875,-500.0,0.00016575,2]
[350921333,1738198241884,-500.0,0.00016575,2]
[350921334,1738198241893,-784.81,0.00016575,2]
[350921335,1738198241903,-505.96190816,0.00016575,2]
[350921336,1738198241913,-500.0,0.00016575,2]
[350921337,1738198241922,-2113.71,0.00016575,2]
[350921338,1738198241931,-822.08,0.00016575,2]
[350921339,1738198241941,-500.0,0.00016575,2]
[350921340,1738198241951,-1271.82,0.00016575,2]
[350921341,1738198241960,-413.91773539,0.00016575,2]
[350921342,1738198241970,-500.0,0.00016575,2]
[350921343,1738198241980,-1092.44,0.00016575,2]
[350921344,1738198241990,-1016.78,0.00016575,2]
[350921345,1738198241999,-500.0,0.00016575,2]
[350921346,1738198242009,-1067.4,0.00016575,2]
[350921347,1738198242018,-500.0,0.00016575,2]
[350921348,1738198242027,-500.0,0.00016575,2]
[350921349,1738198242036,-500.0,0.00016575,2]
[350921350,1738198242046,-500.0,0.00016575,2]
[350921351,1738198242055,-500.0,0.00016575,2]
[350921352,1738198242065,-699.16,0.00016575,2]
[350921353,1738198242074,-500.0,0.00016575,2]
[350921354,1738198242084,-500.0,0.00016575,2]
[350921355,1738198242094,-500.0,0.00016575,2]
[350921356,1738198242103,-503.65076693,0.00016575,2]
[350921357,1738198242112,-1105.29,0.00016575,2]
[350921358,1738198242122,-500.0,0.00016575,2]
[350921359,1738198242131,-500.0,0.00016575,2]
[350921360,1738198242141,-500.0,0.00016575,2]
[350921361,1738198242151,-1524.0,0.000166,2]
[350921362,1738198242160,-7409.38,0.000166,2]
[350921363,1738198242170,-6043.18,0.000166,2]
[350921364,1738198242180,-151.0,0.000166,2]
[350921365,1738198242190,-152.0,0.00016662,2]
[350921366,1738198242201,-150.74,0.00016671,2]
[350921367,1738198242210,-2043.0,0.00016671,2]
[350921368,1738198242219,-2304.0,0.00016671,2]
[350921369,1738198242229,-300.0,0.000167,6]
[350921370,1738198242238,-764.89,0.00016701,2]
[350921371,1738198242249,-500.0,0.00016712,2]
[350921372,1738198242258,-500.0,0.00016712,2]
[350921374,1738198242267,-597.35493927,0.00016712,2]
[350921375,1738198242276,-500.0,0.00016712,2]
[350921376,1738198242286,-500.0,0.00016712,2]
[350921377,1738198242295,-500.0,0.00016712,2]
[350921378,1738198242304,-500.0,0.00016712,2]
[350921379,1738198242318,-500.0,0.00016712,2]
[350921381,1738198242328,-500.0,0.00016712,2]
[350921383,1738198242338,-649.58,0.00016712,2]
[350921385,1738198242347,-500.0,0.00016712,2]
[350921387,1738198242357,-500.0,0.00016712,2]
[350921389,1738198242366,-500.0,0.00016712,2]
[350921390,1738198242375,-500.0,0.00016712,2]
[350921391,1738198242385,-747.08,0.00016712,2]
[350921392,1738198242394,-500.0,0.00016712,2]
[350921393,1738198242404,-569.14,0.00016712,2]
[350921394,1738198242415,-500.0,0.00016712,2]
[350921395,1738198242424,-500.0,0.00016712,2]
[350921396,1738198242434,-1060.63,0.00016712,2]
[350921397,1738198242443,-500.0,0.00016712,2]
[350921398,1738198242453,-500.0,0.00016712,2]
[350921399,1738198242462,-500.0,0.00016712,2]
[350921400,1738198242472,-237.018823,0.00016712,2]
[350921401,1738198242481,-4390.86,0.00016712,2]
[350921402,1738198242491,-500.0,0.00016712,2]
[350921403,1738198242500,-500.0,0.00016712,2]
[350921404,1738198242509,-936.94,0.00016712,2]
[350921405,1738198242519,-500.0,0.00016712,2]
[350921406,1738198242527,-7393.92,0.00016712,2]
[350921407,1738198242537,-2350.9,0.00016712,2]
[350921408,1738198242545,-401.61247607,0.00016712,2]
[350921409,1738198242629,-1419.56104345,0.00016712,2]
[350921410,1738198242640,-1260.90648048,0.00016712,2]
[350921411,1738198242650,-500.0,0.00016712,2]
[350921412,1738198242659,-4311.44,0.00016712,2]
[350921413,1738198242668,-500.0,0.00016712,2]
[350921414,1738198242677,-500.0,0.00016712,2]
[350921415,1738198242686,-1407.97,0.00016712,2]
[350921416,1738198242696,-2150.13,0.00016712,2]
[350921417,1738198242705,-500.0,0.00016712,2]
[350921418,1738198242714,-500.0,0.00016712,2]
[350921419,1738198242723,-663.73194492,0.00016712,2]
[350921453,1738199156752,170.156487,0.00013973,2]
[350921454,1738199211120,-241.887444,0.00015573,2]
[350921455,1738199211140,-154.408,0.0001587,2]
[350921456,1738199211161,-308.1395328,0.00015978,2]
[350921457,1738199211181,-300.0,0.000164,2]
[350921458,1738199211201,-382.30452713,0.00016437,2]
[350921459,1738199211221,-300.0,0.00016437,2]
[350921460,1738199211240,-500.0,0.00016438,2]
[350921461,1738199211260,-143.62562539,0.00016438,2]
[350921502,1738199432303,-300.0,0.00016437,2]
[350921504,1738199432313,-633.12684086,0.00016438,2]
[350922032,1738199437987,-500.0,0.00016438,2]
[350922034,1738199437997,-500.0,0.00016438,2]
[350922036,1738199438007,-500.0,0.00016438,2]
[350922038,1738199438016,-500.0,0.00016438,2]
[350922040,1738199438026,-500.0,0.00016438,2]
[350922042,1738199438036,-601.67893969,0.00016438,2]
[350922044,1738199438046,-499.82010869,0.00016438,2]
[350922046,1738199438055,-500.0,0.00016438,2]
[350922048,1738199438065,-500.0,0.00016438,2]
[350922050,1738199438075,-500.0,0.00016438,2]
[350922052,1738199438085,-500.0,0.00016438,2]
[350922054,1738199438095,-500.0,0.00016438,2]
[350922055,1738199438104,-500.0,0.00016438,2]
[350922058,1738199438114,-501.67030172,0.00016438,2]
[350922059,1738199438123,-611.55646758,0.00016438,2]
[350922061,1738199438132,-502.46572021,0.00016438,2]
[350922063,1738199438142,-500.0,0.00016438,2]
[350922065,1738199438153,-359.16412003,0.00016438,2]
[350922067,1738199438165,-140.83587997,0.00016438,2]
[350922069,1738199438174,-447.81985225,0.00016438,2]
[350922071,1738199438183,-500.0,0.00016438,2]
[350922073,1738199438192,-500.0,0.00016438,2]
[350922075,1738199438202,-54.14320256,0.00016438,2]
[350922077,1738199438213,-445.85679744,0.00016438,2]
[350922079,1738199438224,-500.0,0.00016438,2]
[350922081,1738199438233,-500.0,0.00016438,2]
[350922083,1738199438243,-500.0,0.00016438,2]
[350922085,1738199438252,-522.18235512,0.00016438,2]
[350922087,1738199438262,-500.0,0.00016438,2]
[350922089,1738199438271,-500.0,0.00016438,2]
[350922091,1738199438281,-500.0,0.00016438,2]
[350922093,1738199438290,-500.0,0.00016438,2]
[350922095,1738199438299,-500.0,0.00016438,2]
[350922097,1738199438309,-500.0,0.00016438,2]
[350922099,1738199438318,-500.0,0.00016438,2]
[350922101,1738199438328,-500.0,0.00016438,2]
[350922103,1738199438338,-500.0,0.00016438,2]
[350922105,1738199438348,-500.0,0.00016438,2]
[350922107,1738199438358,-503.05170192,0.00016438,2]
[350922109,1738199438367,-500.0,0.00016438,2]
[350922111,1738199438377,-500.0,0.00016438,2]
[350922113,1738199438386,-500.0,0.00016438,2]
[350922115,1738199438396,-500.0,0.00016438,2]
[350922117,1738199438405,-500.0,0.00016438,2]
[350922119,1738199438414,-500.0,0.00016438,2]
[350922121,1738199438423,-500.0,0.00016438,2]
[350922123,1738199438433,-500.0,0.00016438,2]
[350922125,1738199438453,-500.0,0.00016438,2]
[350922127,1738199438473,-500.0,0.00016438,2]
[350922129,1738199438483,-500.0,0.00016438,2]
[350922131,1738199438492,-500.0,0.00016438,2]
[350922133,1738199438502,-651.72,0.00016438,2]
[350922135,1738199438511,-500.0,0.00016438,2]
[350922136,1738199438520,-500.0,0.00016438,2]
[350922139,1738199438530,-500.0,0.00016438,2]
[350922140,1738199438540,-500.0,0.00016438,2]
[350922142,1738199438549,-501.57585974,0.00016438,2]
[350922144,1738199438559,-695.36,0.00016438,2]
[350922146,1738199438568,-500.0,0.00016438,2]
[350922148,1738199438578,-500.0,0.00016438,2]
[350922150,1738199438587,-500.0,0.00016438,2]
[350922152,1738199438597,-632.14,0.00016438,2]
[350922154,1738199438606,-500.0,0.00016438,2]
[350922156,1738199438616,-500.0,0.00016438,2]
[350922158,1738199438625,-500.0,0.00016438,2]
[350922160,1738199438634,-500.0,0.00016438,2]
[350922162,1738199438643,-500.0,0.00016438,2]
[350922164,1738199438653,-500.0,0.00016438,2]
[350922166,1738199438663,-500.0,0.00016438,2]
[350922168,1738199438673,-500.0,0.00016438,2]
[350922170,1738199438682,-500.0,0.00016438,2]
[350922172,1738199438692,-500.0,0.00016438,2]
[350922174,1738199438701,-500.0,0.00016438,2]
[350922176,1738199438711,-500.0,0.00016438,2]
[350922178,1738199438720,-525.27279852,0.00016438,2]
[350922180,1738199438730,-500.0,0.00016438,2]
[350922182,1738199438739,-500.0,0.00016438,2]
[350922184,1738199438748,-44.71125717,0.00016438,2]
[350922269,1738199440116,-492.3571532,0.00016438,2]
[350922301,1738199443078,-10.00158963,0.00016438,2]
[350922303,1738199443088,-500.0,0.00016438,2]
[350922305,1738199443097,-500.0,0.00016438,2]
[350922307,1738199443106,-500.0,0.00016438,2]
[350922309,1738199443115,-503.19520352,0.00016438,2]
[350922311,1738199443124,-500.0,0.00016438,2]
[350922313,1738199443133,-435.21481405,0.00016438,2]
[350922316,1738199443151,-64.78518595,0.00016438,2]
[350922318,1738199443165,-500.0,0.00016438,2]
[350922319,1738199443176,-500.0,0.00016438,2]
[350922321,1738199443187,-500.0,0.00016438,2]
[350922323,1738199443197,-500.0,0.00016438,2]
[350922325,1738199443208,-500.0,0.00016438,2]
[350922327,1738199443220,-500.0,0.00016438,2]
[350922330,1738199443232,-500.0,0.00016438,2]
[350922331,1738199443241,-500.0,0.00016438,2]
[350922333,1738199443250,-500.0,0.00016438,2]
[350922335,1738199443260,-500.0,0.00016438,2]
[350922337,1738199443269,-500.0,0.00016438,2]
[350922339,1738199443279,-500.0,0.00016438,2]
[350922341,1738199443288,-500.0,0.00016438,2]
[350922343,1738199443298,-990.55,0.00016438,2]
[350922345,1738199443307,-500.0,0.00016438,2]
[350922347,1738199443316,-500.0,0.00016438,2]
[350922349,1738199443327,-500.0,0.00016438,2]
[350922351,1738199443337,-500.0,0.00016438,2]
[350922353,1738199443348,-500.0,0.00016438,2]
[350922355,1738199443358,-316.28613923,0.00016438,2]
[350922520,1738200114189,3356.22719522,0.00015101,2]
[350922527,1738200228231,168.68197,0.00013973,2]
[350922539,1738200405118,-1043.8407122,0.00015638,2]
[350922540,1738200405140,-300.0,0.00016436,2]
[350922541,1738200405160,-267.61316899,0.00016437,2]
[350922542,1738200405180,-6184.61758115,0.00016437,2]
[350922543,1738200405200,-220.25225831,0.00016438,2]
[350922544,1738200405221,-500.0,0.00016438,2]
[350922545,1738200405241,-323.07216448,0.00016438,2]
[350922555,1738200524274,5300.24148591,0.00013,2]
[350922556,1738200524305,2194.39418444,0.00013,2]
[350922573,1738200630109,185.94782495,0.00021587,120]
[350922597,1738200632877,-3356.22719522,0.000155,2]
[350922617,1738200638592,-8.28434671,0.000155,2]
[350922618,1738200638605,-4108.87867634,0.00016337,5]
[350922619,1738200638616,-1117.51523386,0.00016338,2]
[350922620,1738200638626,-300.0,0.00016437,2]
[350922621,1738200638637,-500.70382549,0.00016438,2]
[350922622,1738200638649,-500.0,0.00016438,2]
[350922623,1738200638663,-173.01528004,0.00016438,2]
[350922624,1738200638675,-500.0,0.00016438,2]
[350922625,1738200638687,-500.0,0.00016438,2]
[350922626,1738200638698,-500.0,0.00016438,2]
[350922627,1738200638708,-500.0,0.00016438,2]
[350922628,1738200638720,-500.0,0.00016438,2]
[350922629,1738200638731,-500.0,0.00016438,2]
[350922630,1738200638743,-500.0,0.00016438,2]
[350922631,1738200638754,-514.82600701,0.00016438,2]
[350922632,1738200638767,-511.06818807,0.00016438,2]
[350922633,1738200638778,-500.0,0.00016438,2]
[350922634,1738200638788,-500.0,0.00016438,2]
[350922635,1738200638799,-518.179845,0.00016438,2]
[350922636,1738200638810,-500.0,0.00016438,2]
[350922637,1738200638821,-500.0,0.00016438,2]
[350922638,1738200638832,-500.0,0.00016438,2]
[350922639,1738200638843,-500.0,0.00016438,2]
[350922640,1738200638854,-500.0,0.00016438,2]
[350922641,1738200638865,-500.0,0.00016438,2]
[350922642,1738200638876,-501.72085058,0.00016438,2]
[350922643,1738200638887,-356.67732934,0.00016438,2]
[350922644,1738200638899,-617.36501253,0.00016438,2]
[350922645,1738200638910,-500.0,0.00016438,2]
[350922646,1738200638921,-500.0,0.00016438,2]
[350922647,1738200638932,-604.35840393,0.00016438,2]
[350922648,1738200638943,-500.0,0.00016438,2]
[350922649,1738200638954,-500.0,0.00016438,2]
[350922650,1738200638964,-458.33360303,0.00016438,2]
[350922693,1738200643276,-41.66639697,0.00016438,2]
[350922694,1738200643286,-500.0,0.00016438,2]
[350922695,1738200643295,-440.48870138,0.00016438,2]
[350922697,1738200643307,-59.51129862,0.00016438,2]
[350922699,1738200643316,-500.0,0.00016438,2]
[350922700,1738200643326,-500.0,0.00016438,2]
[350922701,1738200643335,-500.0,0.00016438,2]
[350922702,1738200643345,-500.0,0.00016438,2]
[350922703,1738200643355,-500.0,0.00016438,2]
[350922704,1738200643365,-501.17795164,0.00016438,2]
[350922705,1738200643375,-500.0,0.00016438,2]
[350922706,1738200643385,-500.0,0.00016438,2]
[350922707,1738200643395,-500.0,0.00016438,2]
[350922708,1738200643404,-636.67356742,0.00016438,2]
[350922709,1738200643414,-552.07228922,0.00016438,2]
[350922710,1738200643424,-504.72911011,0.00016438,2]
[350922711,1738200643433,-500.0,0.00016438,2]
[350922712,1738200643443,-504.34253355,0.00016438,2]
[350922713,1738200643453,-500.0,0.00016438,2]
[350922714,1738200643462,-224.7044048,0.00016438,2]
[350922715,1738200643472,-500.0,0.00016438,2]
[350922716,1738200643481,-126.39689036,0.00016438,2]
[350922738,1738200934963,-190.14593728,0.00015376,2]
[350922739,1738200934988,-180.1745832,0.00015531,2]
[350922740,1738200935012,-979.05176556,0.00016338,2]
[350922741,1738200935036,-260.17,0.00016413,2]
[350922742,1738200935062,-300.0,0.00016437,2]
[350922743,1738200935084,-500.0,0.00016438,2]
[350922744,1738200935108,-500.0,0.00016438,2]
[350922745,1738200935132,-510.52460762,0.00016438,2]
[350922746,1738200935155,-500.0,0.00016438,2]
[350922747,1738200935177,-500.0,0.00016438,2]
[350922748,1738200935202,-500.0,0.00016438,2]
[350922749,1738200935226,-500.0,0.00016438,2]
[350922750,1738200935250,-500.0,0.00016438,2]
[350922751,1738200935273,-500.0,0.00016438,2]
[350922752,1738200935297,-500.0,0.00016438,2]
[350922753,1738200935319,-500.0,0.00016438,2]
[350922754,1738200935341,-500.0,0.00016438,2]
[350922755,1738200935363,-500.0,0.00016438,2]
[350922756,1738200935385,-500.0,0.00016438,2]
[350922757,1738200935410,-500.0,0.00016438,2]
[350922758,1738200935434,-500.0,0.00016438,2]
[350922759,1738200935457,-500.0,0.00016438,2]
[350922760,1738200935479,-356.37437461,0.00016438,2]
[350922761,1738200935503,-500.0,0.00016438,2]
[350922762,1738200935529,-500.0,0.00016438,2]
[350922763,1738200935557,-500.0,0.00016438,2]
[350922764,1738200935579,-500.0,0.00016438,2]
[350922765,1738200935601,-500.0,0.00016438,2]
[350922766,1738200935623,-501.13221072,0.00016438,2]
[350922767,1738200935652,-500.0,0.00016438,2]
[350922768,1738200935674,-500.0,0.00016438,2]
[350922769,1738200935696,-636.74499839,0.00016438,2]
[350922770,1738200935718,-500.0,0.00016438,2]
[350922771,1738200935741,-500.0,0.00016438,2]
[350922772,1738200935766,-500.0,0.00016438,2]
[350922773,1738200935788,-501.02575637,0.00016438,2]
[350922774,1738200935813,-500.0,0.00016438,2]
[350922775,1738200935835,-504.56435226,0.00016438,2]
[350922776,1738200935858,-500.0,0.00016438,2]
[350922777,1738200935882,-502.030207,0.00016438,2]
[350922778,1738200935905,-500.0,0.00016438,2]
[350922779,1738200935928,-417.47102027,0.00016438,2]
[350922780,1738200935950,-503.08563319,0.00016438,2]
[350922781,1738200935973,-500.0,0.00016438,2]
[350922782,1738200935997,-167.72320469,0.00016438,2]
[350922783,1738200936021,-500.0,0.00016438,2]
[350922784,1738200936044,-500.0,0.00016438,2]
[350922785,1738200936070,-497.72805202,0.00016438,2]
[350922786,1738200936093,-500.0,0.00016438,2]
[350922788,1738200936117,-503.43614434,0.00016438,2]
[350922789,1738200936141,-501.03453781,0.00016438,2]
[350922790,1738200936163,-516.19,0.00016438,2]
[350922791,1738200936186,-500.0,0.00016438,2]
[350922792,1738200936209,-503.25212837,0.00016438,2]
[350922793,1738200936233,-500.0,0.00016438,2]
[350922794,1738200936256,-507.56977188,0.00016438,2]
[350922795,1738200936281,-500.0,0.00016438,2]
[350922796,1738200936308,-191.84176284,0.00016438,2]
[350922797,1738200936332,-500.0,0.00016438,2]
[350922798,1738200936354,-504.92461086,0.00016438,2]
[350922799,1738200936377,-500.0,0.00016438,2]
[350922800,1738200936399,-626.57,0.00016438,2]
[350922801,1738200936421,-500.0,0.00016438,2]
[350922802,1738200936445,-500.0,0.00016438,2]
[350922803,1738200936468,-500.0,0.00016438,2]
[350922804,1738200936491,-500.0,0.00016438,2]
[350922805,1738200936516,-647.62655615,0.00016438,2]
[350922806,1738200936539,-500.0,0.00016438,2]
[350922807,1738200936566,-500.0,0.00016438,2]
[350922808,1738200936590,-512.08064928,0.00016438,2]
[350922809,1738200936613,-500.0,0.00016438,2]
[350922810,1738200936637,-501.03747084,0.00016438,2]
[350922811,1738200936661,-502.92755861,0.00016438,2]
[350922812,1738200936686,-500.0,0.00016438,2]
[350922813,1738200936708,-381.65166189,0.00016438,2]
[350922814,1738200936732,-500.0,0.00016438,2]
[350922815,1738200936758,-301.69102762,0.00016438,2]